fUSD/lending_fUSD_20260702
["ID","MTS","AMOUNT","RATE_DAILY","PERIOD"]
[426860517,1782964253000,-324.06224,0.000329,7]
[426860511,1782964253000,-197.433107,0.000329,7]
[426860512,1782964253000,-197.433107,0.000329,7]
[426860535,1782964253000,-273.927298,0.000329,7]
[426860515,1782964253000,-324.06224,0.000329,7]
[426860545,1782964253000,-151.0,0.000329,7]
[426860571,1782964253000,-151.0,0.000329,7]
[426860574,1782964253000,-151.0,0.000329,7]
[426860592,1782964253000,-151.0,0.000329,7]
[426860572,1782964253000,-151.0,0.000329,7]
[426860569,1782964253000,-151.0,0.000329,7]
[426860570,1782964253000,-333.427295,0.000329,7]
[426860577,1782964253000,-333.427295,0.000329,7]
[426860576,1782964253000,-216.519612,0.000329,7]
[426860579,1782964253000,-333.427295,0.000329,7]
[426860578,1782964253000,-151.0,0.000329,7]
[426860573,1782964253000,-151.0,0.000329,7]
[426860580,1782964253000,-188.994134,0.000329,7]
[426860585,1782964253000,-151.0,0.000329,7]
[426860583,1782964253000,-151.0,0.000329,7]
[426860586,1782964253000,-188.994134,0.000329,7]
[426860582,1782964253000,-151.0,0.000329,7]
[426860587,1782964253000,-151.0,0.000329,7]
[426860588,1782964253000,-151.0,0.000329,7]
[426860589,1782964253000,-169.841187,0.000329,7]
[426860590,1782964253000,-151.0,0.000329,7]
[426860591,1782964253000,-188.994134,0.000329,7]
[426860593,1782964253000,-169.841187,0.000329,7]
[426860581,1782964253000,-151.0,0.000329,7]
[426860575,1782964253000,-333.427295,0.000329,7]
[426860584,1782964253000,-151.0,0.000329,7]
[426860566,1782964253000,-151.316827,0.000329,7]
[426860568,1782964253000,-151.0,0.000329,7]
[426860553,1782964253000,-156.118837,0.000329,7]
[426860548,1782964253000,-172.357898,0.000329,7]
[426860546,1782964253000,-273.927298,0.000329,7]
[426860544,1782964253000,-172.357898,0.000329,7]
[426860543,1782964253000,-488.952077,0.000329,7]
[426860547,1782964253000,-488.952077,0.000329,7]
[426860551,1782964253000,-488.952077,0.000329,7]
[426860550,1782964253000,-151.0,0.000329,7]
[426860549,1782964253000,-151.0,0.000329,7]
[426860552,1782964253000,-172.357898,0.000329,7]
[426860555,1782964253000,-156.118837,0.000329,7]
[426860542,1782964253000,-2178.627113,0.000329,5]
[426860556,1782964253000,-156.118837,0.000329,7]
[426860554,1782964253000,-172.357898,0.000329,7]
[426860565,1782964253000,-152.62875,0.000329,7]
[426860564,1782964253000,-151.316827,0.000329,7]
[426860567,1782964253000,-151.0,0.000329,7]
[426860560,1782964253000,-151.316827,0.000329,7]
[426860562,1782964253000,-151.316827,0.000329,7]
[426860561,1782964253000,-151.0,0.000329,7]
[426860559,1782964253000,-151.0,0.000329,7]
[426860557,1782964253000,-156.118837,0.000329,7]
[426860558,1782964253000,-151.0,0.000329,7]
[426860563,1782964253000,-206.673072,0.000329,7]
[426860614,1782964254000,-151.0,0.000329,7]
[426860618,1782964254000,-192.960459,0.000329,7]
[426860615,1782964254000,-192.960459,0.000329,7]
[426860616,1782964254000,-151.0,0.000329,7]
[426860613,1782964254000,-619.69102,0.000329,7]
[426860619,1782964254000,-151.0,0.000329,7]
[426860622,1782964254000,-151.0,0.000329,7]
[426860621,1782964254000,-151.0,0.000329,7]
[426860624,1782964254000,-847.32468476,0.000329,2]
[426860625,1782964254000,-360.036795,0.000329,7]
[426860617,1782964254000,-192.960459,0.000329,7]
[426860623,1782964254000,-290.620936,0.000329,7]
[426860626,1782964254000,-151.0,0.000329,7]
[426860627,1782964254000,-360.036795,0.000329,7]
[426860620,1782964254000,-192.960459,0.000329,7]
[426860612,1782964254000,-619.69102,0.000329,7]
[426860611,1782964254000,-151.0,0.000329,7]
[426860607,1782964254000,-619.69102,0.000329,7]
[426860632,1782964254000,-360.036795,0.000329,7]
[426860596,1782964254000,-169.841187,0.000329,7]
[426860594,1782964254000,-151.0,0.000329,7]
[426860597,1782964254000,-169.841187,0.000329,7]
[426860595,1782964254000,-188.994134,0.000329,7]
[426860599,1782964254000,-151.0,0.000329,7]
[426860603,1782964254000,-151.0,0.000329,7]
[426860604,1782964254000,-151.0,0.000329,7]
[426860601,1782964254000,-151.0,0.000329,7]
[426860600,1782964254000,-151.0,0.000329,7]
[426860602,1782964254000,-151.0,0.000329,7]
[426860610,1782964254000,-151.0,0.000329,7]
[426860608,1782964254000,-151.0,0.000329,7]
[426860609,1782964254000,-619.69102,0.000329,7]
[426860605,1782964254000,-215.703515,0.000329,7]
[426860606,1782964254000,-262.107721,0.000329,7]
[426860598,1782964254000,-151.0,0.000329,7]
[426860629,1782964254000,-360.036795,0.000329,7]
[426860630,1782964254000,-151.0,0.000329,7]
[426860652,1782964254000,-151.0,0.000329,7]
[426860653,1782964254000,-369.38388,0.000329,7]
[426860651,1782964254000,-151.0,0.000329,7]
[426860661,1782964254000,-644.318185,0.000329,7]
[426860654,1782964254000,-369.38388,0.000329,7]
[426860655,1782964254000,-369.38388,0.000329,7]
[426860656,1782964254000,-1306.68129,0.000329,7]
[426860657,1782964254000,-1306.68129,0.000329,7]
[426860658,1782964254000,-2611.883798,0.000329,7]
[426860659,1782964254000,-369.383886,0.000329,7]
[426860662,1782964254000,-1306.68129,0.000329,7]
[426860665,1782964254000,-644.318185,0.000329,7]
[426860664,1782964254000,-238.461854,0.000329,7]
[426860663,1782964254000,-2611.883798,0.000329,7]
[426860628,1782964254000,-151.0,0.000329,7]
[426860649,1782964254000,-244.221914,0.000329,7]
[426860650,1782964254000,-244.221914,0.000329,7]
[426860660,1782964254000,-238.461854,0.000329,7]
[426860647,1782964254000,-244.221914,0.000329,7]
[426860631,1782964254000,-151.0,0.000329,7]
[426860648,1782964254000,-244.221914,0.000329,7]
[426860634,1782964254000,-211.618291,0.000329,7]
[426860633,1782964254000,-211.618291,0.000329,7]
[426860636,1782964254000,-289.103967,0.000329,7]
[426860635,1782964254000,-151.0,0.000329,7]
[426860638,1782964254000,-151.0,0.000329,7]
[426860637,1782964254000,-211.618291,0.000329,7]
[426860640,1782964254000,-211.618291,0.000329,7]
[426860641,1782964254000,-151.0,0.000329,7]
[426860642,1782964254000,-289.103967,0.000329,7]
[426860646,1782964254000,-151.0,0.000329,7]
[426860644,1782964254000,-151.0,0.000329,7]
[426860643,1782964254000,-151.0,0.000329,7]
[426860639,1782964254000,-289.103967,0.000329,7]
[426860645,1782964254000,-289.103967,0.000329,7]
[426860699,1782964255000,-813.447582,0.000329,7]
[426860698,1782964255000,-202.128273,0.000329,7]
[426860705,1782964255000,-301.075095,0.000329,7]
[426860692,1782964255000,-202.128281,0.000329,7]
[426860697,1782964255000,-609.925388,0.000329,7]
[426860695,1782964255000,-609.925388,0.000329,7]
[426860703,1782964255000,-151.0,0.000329,7]
[426860690,1782964255000,-322.144592,0.000329,7]
[426860696,1782964255000,-202.128281,0.000329,7]
[426860704,1782964255000,-609.925391,0.000329,7]
[426860709,1782964255000,-151.0,0.000329,7]
[426860700,1782964255000,-609.925388,0.000329,7]
[426860701,1782964255000,-301.075095,0.000329,7]
[426860706,1782964255000,-385.614742,0.000329,7]
[426860710,1782964255000,-301.075095,0.000329,7]
[426860708,1782964255000,-151.0,0.000329,7]
[426860712,1782964255000,-5000.0,0.000329,2]
[426860711,1782964255000,-385.614742,0.000329,7]
[426860707,1782964255000,-813.447582,0.000329,7]
[426860713,1782964255000,-5000.0,0.000329,2]
[426860693,1782964255000,-2391.03198703,0.000329,2]
[426860702,1782964255000,-813.447582,0.000329,7]
[426860689,1782964255000,-322.144592,0.000329,7]
[426860671,1782964255000,-238.461847,0.000329,7]
[426860691,1782964255000,-322.144599,0.000329,7]
[426860666,1782964255000,-1306.681281,0.000329,7]
[426860668,1782964255000,-238.461854,0.000329,7]
[426860669,1782964255000,-644.318185,0.000329,7]
[426860667,1782964255000,-2611.883798,0.000329,7]
[426860670,1782964255000,-2611.883801,0.000329,7]
[426860673,1782964255000,-879.248249,0.000329,7]
[426860674,1782964255000,-879.248249,0.000329,7]
[426860672,1782964255000,-644.318179,0.000329,7]
[426860675,1782964255000,-1389.791653,0.000329,7]
[426860684,1782964255000,-5346.0,0.000329,30]
[426860694,1782964255000,-202.128281,0.000329,7]
[426860683,1782964255000,-1389.791653,0.000329,7]
[426860676,1782964255000,-879.248249,0.000329,7]
[426860677,1782964255000,-151.0,0.000329,7]
[426860681,1782964255000,-151.0,0.000329,7]
[426860685,1782964255000,-151.0,0.000329,7]
[426860679,1782964255000,-879.248256,0.000329,7]
[426860680,1782964255000,-151.0,0.000329,7]
[426860682,1782964255000,-1389.791653,0.000329,7]
[426860686,1782964255000,-151.0,0.000329,7]
[426860687,1782964255000,-233.97263036,0.000329,2]
[426860688,1782964255000,-322.144592,0.000329,7]
[426860678,1782964255000,-1389.791653,0.000329,7]
[426860716,1782964255000,-5000.0,0.000329,2]
[426860715,1782964255000,-5000.0,0.000329,2]
[426860718,1782964255000,-331.61476525,0.00032936,2]
[426860741,1782964255000,-500.0,0.00032999,7]
[426860745,1782964255000,-645.61815891,0.00032999,7]
[426860758,1782964255000,-1500.0,0.00033,2]
[426860742,1782964255000,-500.0,0.00032999,7]
[426860747,1782964255000,-7035.97053251,0.00033,17]
[426860749,1782964255000,-1493.15672698,0.00033,7]
[426860759,1782964255000,-186.55433378,0.00033,120]
[426860761,1782964255000,-52515.78485521,0.00033,2]
[426860767,1782964255000,-5008.03485307,0.00033,120]
[426860768,1782964255000,-800.0,0.00033,5]
[426860757,1782964255000,-1500.0,0.00033,2]
[426860760,1782964255000,-221.20051827,0.00033,120]
[426860764,1782964255000,-17997.12133418,0.00033,8]
[426860765,1782964255000,-10000.0,0.00033,30]
[426860769,1782964255000,-800.0,0.00033,5]
[426860766,1782964255000,-40782.76382086,0.00033,6]
[426860763,1782964255000,-26814.672034,0.00033,30]
[426860771,1782964255000,-800.0,0.00033,5]
[426860770,1782964255000,-800.0,0.00033,5]
[426860773,1782964255000,-55664.65572565,0.00033,7]
[426860772,1782964255000,-20000.0,0.00033,7]
[426860714,1782964255000,-5000.0,0.000329,2]
[426860762,1782964255000,-3704.51299846,0.00033,2]
[426860753,1782964255000,-2000.0,0.00033,33]
[426860751,1782964255000,-37690.06739871,0.00033,10]
[426860756,1782964255000,-10000.0,0.00033,120]
[426860717,1782964255000,-5026.18276465,0.00032901,2]
[426860727,1782964255000,-194.27233145,0.00032999,120]
[426860720,1782964255000,-526.72784571,0.0003299,2]
[426860754,1782964255000,-3440.0,0.00033,120]
[426860721,1782964255000,-500.0,0.00032999,120]
[426860722,1782964255000,-500.0,0.00032999,120]
[426860724,1782964255000,-500.0,0.00032999,120]
[426860726,1782964255000,-500.0,0.00032999,120]
[426860723,1782964255000,-500.0,0.00032999,120]
[426860725,1782964255000,-500.0,0.00032999,120]
[426860728,1782964255000,-500.0,0.00032999,7]
[426860729,1782964255000,-500.0,0.00032999,7]
[426860719,1782964255000,-526.72784571,0.0003299,2]
[426860730,1782964255000,-500.0,0.00032999,7]
[426860737,1782964255000,-500.0,0.00032999,7]
[426860755,1782964255000,-5183.0,0.00033,5]
[426860738,1782964255000,-500.0,0.00032999,7]
[426860732,1782964255000,-500.0,0.00032999,7]
[426860734,1782964255000,-500.0,0.00032999,7]
[426860740,1782964255000,-500.0,0.00032999,7]
[426860733,1782964255000,-500.0,0.00032999,7]
[426860736,1782964255000,-500.0,0.00032999,7]
[426860731,1782964255000,-500.0,0.00032999,7]
[426860735,1782964255000,-500.0,0.00032999,7]
[426860799,1782964256000,-241.955433,0.00032877,7]
[426860783,1782964256000,-153.0,0.00029,4]
[426860791,1782964256000,-4999.41685682,0.000299,2]
[426860789,1782964256000,-541.0,0.00029266,10]
[426860785,1782964256000,-153.0,0.00029,4]
[426860781,1782964256000,-153.0,0.00029,4]
[426860784,1782964256000,-153.0,0.00029,4]
[426860780,1782964256000,-153.0,0.00029,4]
[426860775,1782964256000,-1195.71616546,0.00033,7]
[426860787,1782964256000,-153.0,0.00029,4]
[426860779,1782964256000,-155.14,0.00028713,30]
[426860778,1782964256000,-33657.07005389,0.00033,7]
[426860777,1782964256000,-331.64,0.00033,7]
[426860776,1782964256000,-13955.68133469,0.00033,7]
[426860774,1782964256000,-151401.7771135,0.00033,7]
[426860790,1782964256000,-1589.0,0.000299,30]
[426860786,1782964256000,-153.0,0.00029,4]
[426860788,1782964256000,-153.0,0.00029,4]
[426860782,1782964256000,-153.0,0.00029,4]
[426860796,1782964256000,-301.075095,0.00032877,7]
[426860811,1782964256000,-385.614742,0.00032877,7]
[426860804,1782964256000,-385.614742,0.00032877,7]
[426860806,1782964256000,-151.483599,0.00032877,7]
[426860809,1782964256000,-241.955433,0.00032877,7]
[426860808,1782964256000,-207.548449,0.00032877,7]
[426860807,1782964256000,-241.955433,0.00032877,7]
[426860812,1782964256000,-207.548449,0.00032877,7]
[426860805,1782964256000,-241.955433,0.00032877,7]
[426860810,1782964256000,-256.590734,0.00032877,7]
[426860798,1782964256000,-256.590734,0.00032877,7]
[426860801,1782964256000,-207.548449,0.00032877,7]
[426860802,1782964256000,-256.590734,0.00032877,7]
[426860800,1782964256000,-385.614742,0.00032877,7]
[426860797,1782964256000,-207.548449,0.00032877,7]
[426860794,1782964256000,-207.548449,0.00032877,7]
[426860792,1782964256000,-301.075095,0.00032877,7]
[426860795,1782964256000,-256.590734,0.00032877,7]
[426860793,1782964256000,-385.614742,0.00032877,7]
[426860803,1782964256000,-241.955433,0.00032877,7]
[426860829,1782964257000,-385.614742,0.000329,7]
[426860832,1782964257000,-153.0,0.00029,4]
[426860828,1782964257000,-256.590734,0.000329,7]
[426860830,1782964257000,-37170.7950676,0.00033,7]
[426860834,1782964257000,-89213.85637899,0.00033,7]
[426860835,1782964257000,-21782.06919238,0.00033,7]
[426860837,1782964257000,-590.66006045,0.00033,7]
[426860831,1782964257000,-33950.42010474,0.00033,7]
[426860836,1782964257000,-385.614742,0.00032877,7]
[426860840,1782964257000,-153.0,0.00029,4]
[426860833,1782964257000,-241.955433,0.00032877,7]
[426860827,1782964257000,-207.548449,0.000329,7]
[426860820,1782964257000,-813.447582,0.00032877,7]
[426860824,1782964257000,-385.614742,0.00032877,7]
[426860825,1782964257000,-813.44759,0.000329,7]
[426860823,1782964257000,-256.590734,0.00032877,7]
[426860818,1782964257000,-256.590734,0.00032877,7]
[426860813,1782964257000,-241.955433,0.00032877,7]
[426860819,1782964257000,-207.548449,0.00032877,7]
[426860817,1782964257000,-385.614742,0.00032877,7]
[426860838,1782964257000,-153.0,0.00029,4]
[426860814,1782964257000,-256.590734,0.00032877,7]
[426860815,1782964257000,-385.614742,0.00032877,7]
[426860822,1782964257000,-207.548449,0.00032877,7]
[426860821,1782964257000,-301.075095,0.00032877,7]
[426860826,1782964257000,-301.075099,0.000329,7]
[426860816,1782964257000,-241.955433,0.00032877,7]
[426860839,1782964257000,-153.0,0.00029,4]
[426860843,1782964257000,-375.86867,0.00032877,7]
[426860868,1782964257000,-375.86867,0.00032877,7]
[426860865,1782964257000,-375.86867,0.00032877,7]
[426860866,1782964257000,-241.955433,0.00032877,7]
[426860842,1782964257000,-241.955433,0.00032877,7]
[426860864,1782964257000,-256.590734,0.00032877,7]
[426860863,1782964257000,-207.548449,0.00032877,7]
[426860862,1782964257000,-151.0,0.000325,2]
[426860861,1782964257000,-1500.0,0.00027397,2]
[426860859,1782964257000,-241.955433,0.00032877,7]
[426860860,1782964257000,-74.41282223,0.00033,7]
[426860855,1782964257000,-153.0,0.00029,4]
[426860857,1782964257000,-541.54300055,0.00033,7]
[426860858,1782964257000,-464.76347741,0.00033,7]
[426860867,1782964257000,-207.548449,0.00032877,7]
[426860852,1782964257000,-420.45259294,0.00033,7]
[426860856,1782964257000,-580.58397431,0.00033,7]
[426860841,1782964257000,-1589.0,0.00030174,30]
[426860847,1782964257000,-256.590734,0.00032877,7]
[426860850,1782964257000,-256.590734,0.000329,7]
[426860853,1782964257000,-1184.01133435,0.00033,7]
[426860844,1782964257000,-241.955433,0.00032877,7]
[426860848,1782964257000,-207.548449,0.00032877,7]
[426860846,1782964257000,-375.86867,0.00032877,7]
[426860849,1782964257000,-385.614751,0.000329,7]
[426860851,1782964257000,-207.548449,0.000329,7]
[426860854,1782964257000,-423.95581672,0.00033,7]
[426860845,1782964257000,-256.590734,0.00032877,7]
[426860880,1782964258000,-1589.0,0.00030722,30]
[426860885,1782964258000,-256.590734,0.00032877,7]
[426860883,1782964258000,-375.86867,0.00032877,7]
[426860881,1782964258000,-207.548449,0.00032877,7]
[426860884,1782964258000,-375.86867,0.00032877,7]
[426860882,1782964258000,-241.955433,0.00032877,7]
[426860879,1782964258000,-195.21301891,0.00030448,30]
[426860877,1782964258000,-772.65231782,0.00030448,30]
[426860875,1782964258000,-524.60980056,0.00033,7]
[426860876,1782964258000,-157.06784052,0.00026298,2]
[426860872,1782964258000,-76.82135371,0.00033,7]
[426860871,1782964258000,-256.590734,0.00032877,7]
[426860873,1782964258000,-717.10800713,0.00033,7]
[426860874,1782964258000,-4821.12710788,0.00033,7]
[426860870,1782964258000,-409.0534531,0.00033,7]
[426860887,1782964258000,-375.86867,0.00032877,7]
[426860869,1782964258000,-21127.619395,0.00033,7]
[426860878,1782964258000,-621.13466327,0.00030448,30]
[426860886,1782964258000,-241.955433,0.00032877,7]
[426860905,1782964258000,-241.955433,0.00032877,7]
[426860895,1782964258000,-256.590734,0.00032877,7]
[426860908,1782964258000,-1572.44295253,0.00033,7]
[426860907,1782964258000,-207.548449,0.00032877,7]
[426860904,1782964258000,-4999.41685682,0.000299,2]
[426860906,1782964258000,-375.86867,0.00032877,7]
[426860896,1782964258000,-207.548449,0.00032877,7]
[426860900,1782964258000,-207.548449,0.000329,7]
[426860903,1782964258000,-500.0,0.00029,2]
[426860899,1782964258000,-256.590734,0.000329,7]
[426860901,1782964258000,-375.86867,0.000329,7]
[426860902,1782964258000,-5899.32641875,0.00033,7]
[426860891,1782964258000,-207.548449,0.00032877,7]
[426860894,1782964258000,-207.548449,0.00032877,7]
[426860892,1782964258000,-241.955433,0.00032877,7]
[426860897,1782964258000,-375.86867,0.00032877,7]
[426860890,1782964258000,-241.955433,0.00032877,7]
[426860889,1782964258000,-207.548449,0.00032877,7]
[426860898,1782964258000,-375.86867,0.000329,7]
[426860888,1782964258000,-256.590734,0.00032877,7]
[426860893,1782964258000,-151.0,0.00032877,7]
[426860909,1782964262000,634189.7935,0.00027297,120]
[426860910,1782964282000,452.75194144,0.000164,7]
[426860911,1782964283000,452.75194144,0.00016728,7]
[426860912,1782964284000,452.75194144,0.0001722,7]
[426860913,1782964285000,452.75194144,0.00017712,7]
[426860914,1782964286000,452.75194145,0.00018368,7]
[426860915,1782964288000,511.10759281,0.00014999,2]
[426860917,1782964368000,151.0,0.00018,2]
[426860918,1782964371000,151.0,0.00018,2]
[426860919,1782964714000,624.92,0.00014999,2]
[426860920,1782964714000,624.92,0.00014999,2]
[426860921,1782964714000,624.92,0.00014999,2]
[426860924,1782964715000,624.92,0.00014999,2]
[426860923,1782964715000,624.92,0.00014999,2]
[426860922,1782964715000,624.92,0.00014999,2]
[426860925,1782964716000,624.92,0.00014999,2]
[426860926,1782964747000,1079.61,0.00029879,120]
[426860928,1782964849000,2291.19035518,0.00024151,120]
[426860927,1782964849000,3000.0,0.00024151,120]
[426860930,1782964855000,200.0,0.00018519,2]
[426860929,1782964855000,200.0,0.00018519,2]
[426860933,1782964856000,200.0,0.00018519,2]
[426860932,1782964856000,200.0,0.00018519,2]
[426860931,1782964856000,200.0,0.00018519,2]
[426860934,1782964857000,200.0,0.00018519,2]
[426860936,1782964857000,200.0,0.00018519,2]
[426860935,1782964857000,200.0,0.00018519,2]
[426860937,1782964858000,200.0,0.00018519,2]
[426860939,1782964899000,162.55,0.00029377,120]
[426860952,1782964990000,151.0,0.00018,2]
[426860953,1782964994000,151.0,0.00018,2]
[426860954,1782965043000,200.11624,0.00018,2]
[426860956,1782965164000,151.0,0.00018519,2]
[426860960,1782965427000,413.17351959,0.00030124,120]
[426860959,1782965427000,500.0,0.00029899,120]
[426860970,1782965431000,-705.96393645,0.00021109,2]
[426860968,1782965431000,-500.0,0.0002101,2]
[426860966,1782965431000,-235.32131215,0.00020859,2]
[426860967,1782965431000,-150.0,0.00020934,2]
[426860973,1782965431000,-250.0,0.0002113,2]
[426860969,1782965431000,-246.49027511,0.00021109,2]
[426860978,1782965431000,-1586.41,0.0002119,2]
[426860971,1782965431000,-503.48272538,0.0002112,2]
[426860972,1782965431000,-1230.54309654,0.0002112,2]
[426860974,1782965431000,-267.17955546,0.00021166,2]
[426860976,1782965431000,-219.27990887,0.0002119,2]
[426860975,1782965431000,-269.98,0.0002119,3]
[426860977,1782965431000,-4999.99,0.0002119,2]
[426861020,1782965432000,-500.0,0.00022109,2]
[426861022,1782965432000,-500.0,0.00022109,2]
[426861018,1782965432000,-150.0,0.00022087,2]
[426861019,1782965432000,-688.0,0.00022107,2]
[426861016,1782965432000,-325.8,0.00022017,2]
[426861012,1782965432000,-5735.38,0.00021715,2]
[426861014,1782965432000,-150.0,0.00021849,2]
[426861015,1782965432000,-321.29,0.00021902,2]
[426861021,1782965432000,-500.0,0.00022109,2]
[426861013,1782965432000,-9533.31,0.00021723,2]
[426861011,1782965432000,-432.43907913,0.00021659,2]
[426861017,1782965432000,-150.0,0.00022059,2]
[426861023,1782965432000,-500.0,0.00022109,2]
[426861024,1782965432000,-415.9735204,0.00022109,2]
[426861029,1782965432000,-500.0,0.00022109,2]
[426861007,1782965432000,-150.0,0.00021429,2]
[426861032,1782965432000,-500.0,0.0002211,2]
[426861025,1782965432000,-500.0,0.00022109,2]
[426861034,1782965432000,-321.3,0.00022165,2]
[426861026,1782965432000,-500.0,0.00022109,2]
[426861033,1782965432000,-5000.0,0.00022144,2]
[426861027,1782965432000,-407.34180192,0.00022109,2]
[426861031,1782965432000,-499.99999999,0.00022109,2]
[426861028,1782965432000,-500.0,0.00022109,2]
[426861035,1782965432000,-322.8,0.0002225,2]
[426861037,1782965432000,-150.0,0.00022269,2]
[426861049,1782965432000,-321.29,0.0002305,2]
[426861030,1782965432000,-500.0,0.00022109,2]
[426861006,1782965432000,-11077.73,0.00021273,2]
[426861001,1782965432000,-354.66,0.00021219,2]
[426861010,1782965432000,-1297.3172374,0.00021659,2]
[426861047,1782965432000,-249.0,0.00022899,2]
[426860979,1782965432000,-9999.99,0.0002119,2]
[426860982,1782965432000,-468.56147733,0.0002119,2]
[426860981,1782965432000,-2277.44852267,0.0002119,2]
[426860984,1782965432000,-659.1457183,0.0002119,2]
[426860983,1782965432000,-213.81944089,0.0002119,2]
[426860987,1782965432000,-1008.0592262,0.0002119,2]
[426860986,1782965432000,-2229.6678315,0.0002119,2]
[426860985,1782965432000,-1399.23683918,0.0002119,2]
[426860988,1782965432000,-365.813,0.0002119,2]
[426860991,1782965432000,-378.11011445,0.0002119,2]
[426860990,1782965432000,-3776.01188413,0.0002119,2]
[426860989,1782965432000,-348.2360598,0.0002119,2]
[426860993,1782965432000,-1504.35327511,0.0002119,2]
[426860998,1782965432000,-299.7438855,0.0002119,2]
[426860994,1782965432000,-132.10672489,0.0002119,2]
[426860996,1782965432000,-150.99,0.0002119,2]
[426860992,1782965432000,-144.76988555,0.0002119,2]
[426860995,1782965432000,-207.86,0.0002119,2]
[426860997,1782965432000,-701.9261145,0.0002119,2]
[426860999,1782965432000,-299.99,0.0002119,7]
[426861004,1782965432000,-4.63649021,0.00021273,2]
[426861000,1782965432000,-150.0,0.00021219,2]
[426861009,1782965432000,-150.0,0.00021639,2]
[426861003,1782965432000,-2397.34,0.00021273,2]
[426861002,1782965432000,-321.91,0.00021273,2]
[426861008,1782965432000,-1821.73,0.00021607,2]
[426861005,1782965432000,-1045.29350979,0.00021273,2]
[426861048,1782965432000,-500.0,0.00022932,2]
[426860980,1782965432000,-999.99,0.0002119,2]
[426861038,1782965432000,-500.0,0.00022384,2]
[426861069,1782965432000,-176.36587513,0.00023441,2]
[426861074,1782965432000,-500.0,0.00023753,2]
[426861071,1782965432000,-500.0,0.00023479,2]
[426861079,1782965432000,-154.0,0.00024,2]
[426861081,1782965432000,-158.0,0.00024,2]
[426861080,1782965432000,-190.0,0.00024,2]
[426861084,1782965432000,-291.0,0.00024,2]
[426861083,1782965432000,-155.0,0.00024,2]
[426861077,1782965432000,-1079.61,0.00023904,2]
[426861082,1782965432000,-155.0,0.00024,2]
[426861088,1782965432000,-166.98,0.00024024,2]
[426861087,1782965432000,-220.0,0.00024,2]
[426861086,1782965432000,-158.0,0.00024,2]
[426861068,1782965432000,-164.27206944,0.00023441,2]
[426861085,1782965432000,-165.99478938,0.00024,2]
[426861089,1782965432000,-321.29,0.00024026,2]
[426861091,1782965432000,-200.0,0.00024039,2]
[426861090,1782965432000,-500.0,0.00024027,2]
[426861101,1782965432000,-1665.06,0.00024669,2]
[426861092,1782965432000,-166.14,0.00024059,2]
[426861093,1782965432000,-1665.06,0.00024067,2]
[426861097,1782965432000,-500.0,0.00024575,2]
[426861096,1782965432000,-445.11,0.0002439,18]
[426861095,1782965432000,-500.0,0.00024301,2]
[426861094,1782965432000,-2639.56,0.000242,2]